bitfinex-derivatives/quotes_SOLF0:USTF0_20230402
["timestamp","ask_amount","ask_price","bid_price","bid_amount"]
[1680423391852,0.07048736,21.178,21.174,23.64]
[1680423392154,0.06523097,21.183,21.174,23.64]
[1680423392451,1.73599085,21.184,21.174,23.64]
[1680423392648,1.73599085,21.185,21.174,23.64]
[1680423392849,1.73599085,21.184,21.174,23.64]
[1680423393049,1.73599085,21.183,21.174,23.64]
[1680423393249,23.70295889,21.186,21.174,23.64]
[1680423393450,1.73597716,21.185,21.174,23.64]
[1680423399354,1.73597716,21.185,21.176,23.64]
[1680423399550,1.79893605,21.186,21.176,23.64]
[1680423399750,1.73597716,21.185,21.176,23.64]
[1680423399951,1.73597716,21.184,21.176,23.64]
[1680423400156,1.73597716,21.183,21.176,23.64]
[1680423400356,1.73597716,21.182,21.176,23.64]
[1680423400556,0.06295889,21.186,21.176,23.64]
[1680423400751,1.7989709,21.186,21.176,23.64]
[1680423411867,1.7989709,21.186,21.18,23.41]
[1680423412064,1.73601201,21.185,21.18,23.41]
[1680423412363,0.06518268,21.19,21.18,23.41]
[1680423412564,1.80085183,21.19,21.18,23.41]
[1680423416365,11.80085183,21.19,21.18,23.41]
[1680423416663,1.73566915,21.189,21.18,23.41]
[1680423416859,1.80085183,21.19,21.18,23.41]
[1680423417064,1.73566915,21.189,21.18,23.41]
[1680423417264,1.73566915,21.188,21.18,23.41]
[1680423417565,1.73566915,21.187,21.18,23.41]
[1680423417863,1.73566915,21.186,21.18,23.41]
[1680423418067,1.73566915,21.185,21.18,23.41]
[1680423418260,1.73566915,21.189,21.18,23.41]
[1680423418462,0.06518268,21.19,21.18,23.41]
[1680423418667,1.8006913,21.19,21.18,23.41]
[1680423424465,11.8006913,21.19,21.18,23.41]
[1680423424662,1.73550862,21.189,21.18,23.41]
[1680423425667,1.73550862,21.188,21.18,23.41]
[1680423425967,1.73550862,21.187,21.18,23.41]
[1680423426166,1.73550862,21.186,21.18,23.41]
[1680423426469,1.73550862,21.185,21.18,23.41]
[1680423426670,10.06518268,21.19,21.18,23.41]
[1680423426970,1.73573261,21.189,21.178,23.64]
[1680423427167,1.73573261,21.188,21.178,23.64]
[1680423427369,1.73573261,21.187,21.178,23.64]
[1680423427667,1.73573261,21.186,21.178,23.64]
[1680423427863,1.73573261,21.185,21.178,23.64]
[1680423428064,10.06518268,21.19,21.178,23.64]
[1680423428270,1.73574072,21.189,21.178,23.64]
[1680423428469,1.73574072,21.188,21.178,23.64]
[1680423428670,1.73574072,21.187,21.178,23.64]
[1680423428871,1.73574072,21.186,21.178,23.64]
[1680423429069,1.73574072,21.189,21.178,23.64]
[1680423429272,1.73574072,21.188,21.178,23.64]
[1680423429471,0.06518268,21.19,21.182,23.64]
[1680423429472,1.73574072,21.187,21.182,23.64]
[1680423429771,0.06518268,21.19,21.182,23.64]
[1680423442381,0.06518268,21.19,21.185,23.64]
[1680423442582,0.06066537,21.195,21.185,23.64]
[1680423442783,0.06066537,21.195,21.189,23.64]
[1680423442983,1.73532017,21.195,21.189,23.64]
[1680423443184,1.73532017,21.194,21.189,23.64]
[1680423443485,1.73532017,21.193,21.189,23.64]
[1680423443685,1.73532017,21.192,21.189,23.64]
[1680423443885,46.01593512,21.199,21.189,23.64]
[1680423444085,1.73532936,21.198,21.189,23.64]
[1680423446484,1.73532936,21.198,21.189,23.57030846]
[1680423462405,1.73532936,21.198,21.184,34.922]
[1680423462601,1.73532936,21.198,21.192,18.7]
[1680423479025,0.06153512,21.199,21.197,18.73]
[1680423479225,11.8006626,21.205,21.198,18.73]
[1680423479523,1.73446807,21.204,21.198,18.73]
[1680423479725,1.73446807,21.203,21.198,18.73]
[1680423480024,1.73446807,21.202,21.198,18.73]
[1680423480224,10.0,21.205,21.198,18.73]
[1680423480425,1.7344841,21.204,21.198,18.73]
[1680423482329,1.7344841,21.204,21.197,23.39]
[1680423482828,1.7344841,21.203,21.197,23.39]
[1680423483029,1.7344841,21.202,21.197,23.39]
[1680423483229,1.7344841,21.201,21.197,23.39]
[1680423483430,10.0,21.207,21.197,23.39]
[1680423483630,23.57,21.204,21.194,0.06663044]
[1680423483834,11.73452443,21.203,21.194,0.06663044]
[1680423484023,1.73452443,21.202,21.194,0.06663044]
[1680423484427,48.86282443,21.202,21.194,0.06663044]
[1680423484730,47.1283,21.202,21.194,0.06663044]
[1680423485529,1.73444388,21.201,21.194,0.06663044]
[1680423485830,47.1283,21.202,21.194,0.06663044]
[1680423487033,70.6983,21.202,21.194,0.06663044]
[1680423496338,47.1283,21.202,21.194,0.06663044]
[1680423535068,188.5283,21.202,21.194,0.06663044]
[1680423537074,23.57,21.201,21.194,0.06663044]
[1680423542775,164.97,21.201,21.194,0.06663044]
[1680423542982,23.57,21.197,21.186,23.45]
[1680423544175,164.97,21.197,21.186,23.45]
[1680423544377,23.38,21.194,21.183,23.45]
[1680423544679,23.38,21.194,21.184,126.88030994]
[1680423547480,18.86,21.192,21.185,18.88]
[1680423566088,18.86,21.192,21.176,10.0]
[1680423566293,18.86,21.186,21.164,100.0]
[1680423566595,18.86,21.186,21.179,18.88]
[1680423567091,18.7,21.185,21.178,18.88]
[1680423569498,18.86,21.187,21.18,18.76]
[1680423572495,47.8151,21.188,21.178,23.61]
[1680423599111,23.61,21.189,21.178,23.61]
[1680423599412,0.06924076,21.19,21.184,23.54]
[1680423599610,0.06889823,21.194,21.184,23.54]
[1680423603517,0.06889823,21.194,21.187,23.57]
[1680423616233,0.06889823,21.194,21.184,23.57]
[1680423625237,23.67889823,21.194,21.184,23.57]
[1680423627042,23.61,21.192,21.18,23.61]
[1680423627337,23.61,21.192,21.181,126.90122509]
[1680423632451,0.06889823,21.194,21.181,126.90122509]
[1680423632750,18.89,21.19,21.182,145.77122509]
[1680423633052,18.89,21.19,21.182,18.87]
[1680423636950,18.89,21.188,21.181,18.87]
[1680423637150,18.89,21.188,21.182,126.88878901]
[1680423640960,18.89,21.188,21.176,37.8127]
[1680423640961,18.89,21.185,21.178,18.89]
[1680423647062,18.89,21.183,21.175,18.87]
[1680423656964,18.89,21.181,21.174,18.89]
[1680423663272,0.0709246,21.186,21.177,18.89]
[1680423663273,18.89,21.185,21.177,18.89]
[1680423666976,18.89,21.183,21.175,18.89]
[1680423676082,18.89,21.185,21.178,18.87]
[1680423677381,23.6909246,21.186,21.176,23.41]
[1680423680391,0.0709246,21.186,21.179,23.58]
[1680423681689,0.0709246,21.186,21.182,23.41]
[1680423681986,0.06584403,21.191,21.182,23.41]
[1680423697098,23.68584403,21.191,21.18,23.58]
[1680423717015,0.06584403,21.191,21.182,23.53]
[1680423720926,0.06584403,21.191,21.185,23.47]
[1680423721224,10.07002097,21.195,21.185,23.47]
[1680423721424,0.07002097,21.195,21.185,23.47]
[1680423721623,1.80487012,21.195,21.185,23.47]
[1680423727030,1.80487012,21.195,21.186,23.58]
[1680423734730,1.80487012,21.195,21.183,60.8643]
[1680423736634,23.62,21.194,21.183,60.8643]
[1680423737334,0.07002097,21.195,21.183,37.4543]
[1680423737534,18.71,21.192,21.185,18.88]
[1680423748643,18.71,21.192,21.186,126.88917086]
[1680423756946,18.71,21.194,21.186,145.76917086]
[1680423757141,18.71,21.194,21.186,18.88]
[1680423777063,18.71,21.194,21.187,18.88]
[1680423787077,0.07002097,21.195,21.191,18.88]
[1680423787375,46.5999,21.196,21.192,126.83784359]
[1680423790679,46.5999,21.196,21.191,18.88]
[1680423806391,18.71,21.195,21.188,18.88]
[1680423809691,18.71,21.192,21.185,18.88]
[1680423810092,18.71,21.189,21.181,18.88]
[1680423810795,18.71,21.185,21.178,18.88]
[1680423810994,18.71,21.185,21.179,126.88508623]
[1680423816501,18.71,21.185,21.178,18.88]
[1680423817101,46.0117,21.188,21.165,151.4]
[1680423817102,18.71,21.184,21.177,18.88]
[1680423817403,18.71,21.184,21.178,126.91007761]
[1680423827005,18.71,21.185,21.178,145.79007761]
[1680423827204,18.71,21.185,21.179,126.91007761]
[1680423836614,18.71,21.185,21.178,18.88]
[1680423839810,18.71,21.185,21.179,126.89327395]
[1680423843618,18.71,21.185,21.178,18.88]
[1680423844820,18.71,21.185,21.179,126.89311302]
[1680423845718,18.71,21.185,21.178,18.88]
[1680423847019,18.71,21.185,21.179,126.89339672]
[1680423856925,64.78603348,21.188,21.181,18.88]
[1680423866926,64.78603348,21.188,21.175,10.0]
[1680423867230,64.78603348,21.188,21.181,18.88]
[1680423868122,18.77433348,21.188,21.181,18.88]
[1680423869130,18.77433348,21.188,21.182,126.88997578]
[1680423869332,18.71,21.188,21.182,126.88997578]
[1680423873833,18.77019294,21.192,21.184,18.88]
[1680423877037,0.06019294,21.192,21.186,18.88]
[1680423877239,45.6223,21.193,21.186,18.88]
[1680423886947,45.6223,21.193,21.187,18.88]
[1680423896954,45.6223,21.193,21.186,18.88]
[1680423898854,45.6223,21.193,21.176,10.0]
[1680423898855,18.71,21.191,21.184,18.88]
[1680423899056,18.71,21.191,21.185,126.89427242]
[1680423936975,18.71,21.19,21.185,126.89427242]
[1680423940975,18.71,21.194,21.187,18.88]
[1680423941175,18.71,21.194,21.188,126.89427242]
[1680423947091,18.77457482,21.196,21.189,18.88]
[1680423948094,18.77457482,21.196,21.19,126.8707036]
[1680423948292,18.71,21.196,21.19,126.8707036]
[1680423948491,18.71,21.196,21.189,18.88]
[1680423953700,18.71,21.196,21.19,126.85446324]
[1680423956203,18.77576361,21.2,21.192,18.88]
[1680423962113,0.06576361,21.2,21.196,18.88]
[1680423962411,18.71,21.203,21.196,18.88]
[1680423967115,18.71,21.202,21.195,18.88]
[1680423977123,18.71,21.203,21.196,18.88]
[1680423989429,18.71,21.199,21.192,18.88]
[1680424006948,18.71,21.201,21.194,18.88]
[1680424013056,0.06945071,21.203,21.198,18.88]
[1680424013259,1.73413408,21.204,21.198,18.88]
[1680424016958,20.44413408,21.204,21.197,18.88]
[1680424017257,18.71,21.204,21.197,18.88]
[1680424046985,18.71,21.205,21.198,18.88]
[1680424049790,18.71,21.205,21.19,45.9216]
[1680424049791,43.7173,21.207,21.201,18.88]
[1680424052282,18.77405212,21.208,21.206,18.88]
[1680424052283,0.06405212,21.208,21.206,18.88]
[1680424052488,1.73347419,21.213,21.206,18.88]
[1680424057692,18.71,21.212,21.204,18.88]
[1680424060195,18.71,21.209,21.201,18.88]
[1680424065496,18.71,21.205,21.198,18.88]
[1680424069696,18.71,21.202,21.194,18.88]
[1680424069893,18.71,21.202,21.195,126.80939232]
[1680424071700,18.71,21.202,21.194,18.88]
[1680424072601,18.71,21.202,21.195,126.81032293]
[1680424083108,18.77869019,21.209,21.201,18.88]
[1680424083609,0.06869019,21.209,21.205,18.88]
[1680424083803,18.71,21.212,21.205,18.88]
[1680424087409,23.401497,21.214,21.203,23.56]
[1680424087708,1.73343732,21.213,21.203,23.56]
[1680424097019,1.73343732,21.213,21.205,23.56]
[1680424097317,0.061497,21.214,21.205,23.56]
[1680424100816,23.621497,21.214,21.202,23.56]
[1680424101018,1.73344138,21.213,21.202,23.56]
[1680424107023,23.56,21.211,21.199,23.56]
[1680424108424,23.56,21.211,21.2,126.77528201]
[1680424124637,46.426,21.213,21.202,23.56]
[1680424124836,46.426,21.213,21.203,126.77528201]
[1680424130038,0.061497,21.214,21.206,23.56]
[1680424131537,0.061497,21.214,21.203,23.56]
[1680424131839,1.79472721,21.214,21.204,126.77872676]
[1680424133541,0.061497,21.214,21.204,126.77872676]
[1680424134344,1.79480011,21.214,21.203,23.56]
[1680424134635,23.56,21.212,21.2,23.56]
[1680424134841,23.56,21.212,21.201,126.7800352]
[1680424146850,45.2564,21.213,21.203,23.56]
[1680424147054,0.061497,21.214,21.206,23.56]
[1680424147852,23.621497,21.214,21.202,23.56]
[1680424148052,23.621497,21.214,21.203,126.77950131]
[1680424152356,0.061497,21.214,21.203,126.77950131]
[1680424152560,18.85,21.212,21.204,145.60950131]
[1680424152753,18.85,21.212,21.204,18.83]
[1680424156967,18.85,21.209,21.202,18.83]
[1680424157162,18.85,21.209,21.203,126.77846963]
[1680424166975,18.85,21.208,21.203,126.77846963]
[1680424167176,18.85,21.208,21.201,126.77846963]
[1680424167475,18.85,21.208,21.202,126.77846963]
[1680424167775,18.85,21.208,21.203,126.77846963]
[1680424167973,18.85,21.208,21.204,126.77846963]
[1680424168174,18.85,21.208,21.201,126.77846963]
[1680424186992,18.85,21.209,21.202,18.85]
[1680424187195,18.85,21.209,21.203,126.77846963]
[1680424193399,18.85,21.209,21.202,18.85]
[1680424193797,18.85,21.209,21.203,126.79451174]
[1680424197095,18.85,21.208,21.203,126.79451174]
[1680424197300,18.85,21.208,21.201,126.79451174]
[1680424197495,18.85,21.208,21.202,126.79234533]
[1680424197695,18.85,21.208,21.203,126.79234533]
[1680424198002,18.85,21.208,21.2,18.85]
[1680424198205,18.85,21.208,21.201,126.79223764]
[1680424203305,18.67,21.204,21.201,126.79223764]
[1680424203506,18.67,21.204,21.197,18.83]
[1680424207011,18.85,21.202,21.195,18.83]
[1680424207212,18.85,21.202,21.196,126.81636537]
[1680424207711,18.85,21.202,21.195,18.83]
[1680424216919,18.85,21.202,21.185,10.0]
[1680424217124,18.73844641,21.201,21.193,18.83]
[1680424217325,18.67,21.201,21.194,126.81573072]
[1680424218628,18.67,21.201,21.193,18.83]
[1680424227028,18.67,21.199,21.191,18.85]
[1680424227327,18.67,21.199,21.192,126.81416234]
[1680424229428,18.67,21.199,21.191,18.85]
[1680424246936,18.85,21.201,21.194,18.85]
[1680424251338,18.91503862,21.205,21.198,18.85]
[1680424251544,0.06503862,21.205,21.201,18.83]
[1680424251844,1.73393793,21.207,21.201,18.83]
[1680424257045,1.73393793,21.207,21.2,18.85]
[1680424267056,20.40393793,21.207,21.2,18.85]
[1680424267355,1.73393793,21.206,21.2,18.85]
[1680424275563,18.67,21.203,21.189,10.0]
[1680424275766,18.73037051,21.203,21.19,126.82879361]
[1680424276064,18.73037051,21.203,21.196,18.85]
[1680424296987,18.67,21.201,21.194,18.83]
[1680424300689,18.67,21.201,21.195,126.83067208]
[1680424306995,18.73037051,21.203,21.195,145.68067208]
[1680424307193,18.73037051,21.203,21.196,126.83067208]
[1680424308394,18.73037051,21.203,21.195,18.85]
[1680424308993,18.85,21.199,21.185,10.0]
[1680424309297,18.85,21.199,21.186,126.84510512]
[1680424309501,18.85,21.199,21.192,18.85]
[1680424309695,18.85,21.199,21.193,126.84510512]
[1680424313298,18.85,21.196,21.193,126.84510512]
[1680424313598,18.85,21.196,21.188,18.85]
[1680424313794,18.85,21.196,21.189,126.84588429]
[1680424314098,18.67,21.193,21.189,126.84588429]
[1680424314297,18.67,21.193,21.19,126.84588429]
[1680424314498,18.67,21.193,21.186,126.84588429]
[1680424314797,18.67,21.193,21.185,18.83]
[1680424314798,18.67,21.193,21.187,126.84588429]
[1680424314996,18.67,21.193,21.186,126.84588429]
[1680424327008,18.67,21.194,21.187,18.83]
[1680424327210,18.67,21.194,21.188,126.84588429]
[1680424334012,18.85,21.197,21.19,18.85]
[1680424334211,18.85,21.197,21.191,126.84588429]
[1680424347029,18.85,21.198,21.191,126.84588429]
[1680424358337,0.0651792,21.2,21.194,18.85]
[1680424358532,66.6529,21.202,21.194,18.85]
[1680424359138,0.06441611,21.204,21.197,18.85]
[1680424359338,1.798458,21.204,21.197,18.85]
[1680424359638,0.06441611,21.204,21.197,18.85]
[1680424370149,1.79844678,21.204,21.197,18.85]
[1680424375857,0.06441611,21.204,21.201,18.85]
[1680424376156,1.73383182,21.208,21.201,18.85]
[1680424376756,18.67,21.209,21.201,18.85]
[1680424376953,18.67,21.209,21.196,10.0]
[1680424377157,0.06219262,21.21,21.204,18.85]
[1680424377459,1.73377433,21.21,21.204,18.85]
[1680424377760,18.85,21.211,21.204,18.85]
[1680424385362,1.73379898,21.21,21.204,18.85]
[1680424397669,18.85,21.211,21.204,18.85]
[1680424406981,18.73128225,21.214,21.206,18.85]
[1680424407180,1.73343598,21.213,21.206,18.85]
[1680424413484,18.73128225,21.214,21.206,18.85]
[1680424415586,1.73333251,21.213,21.206,18.85]
[1680424423195,18.73128225,21.214,21.206,18.85]
[1680424425599,18.85,21.21,21.195,36.3395]
[1680424425899,18.85,21.21,21.201,18.85]
[1680424426299,18.67,21.212,21.204,18.85]
[1680424437005,18.85,21.212,21.204,18.85]
[1680424441312,18.67,21.209,21.201,18.83]
[1680424450923,18.67,21.209,21.202,126.7821259]
[1680424465429,18.67,21.209,21.195,36.3395]
[1680424465430,18.67,21.205,21.198,18.85]
[1680424465631,18.67,21.205,21.199,126.80837481]
[1680424465932,18.67,21.205,21.198,18.85]
[1680424467029,18.85,21.204,21.196,18.83]
[1680424467232,18.85,21.204,21.197,126.80867961]
[1680424469025,18.85,21.201,21.197,126.80867961]
[1680424469228,18.67,21.198,21.19,18.85]
[1680424469432,18.67,21.198,21.191,126.8209193]
[1680424470134,0.0637345,21.201,21.191,126.8209193]
[1680424470135,18.85,21.194,21.191,126.8209193]
[1680424470329,18.85,21.194,21.187,18.85]
[1680424470530,18.85,21.194,21.188,126.85328722]
[1680424472631,18.85,21.194,21.187,18.85]
[1680424473638,18.85,21.194,21.188,126.85282521]
[1680424477040,18.67,21.192,21.188,126.85282521]
[1680424477234,18.67,21.192,21.185,18.85]
[1680424477438,18.67,21.192,21.186,126.85861565]
[1680424482545,18.67,21.192,21.185,18.85]
[1680424482745,18.67,21.189,21.182,18.85]
[1680424485243,18.85,21.193,21.185,18.83]
[1680424485443,18.85,21.193,21.186,10.0]
[1680424485644,18.73986003,21.196,21.189,18.85]
[1680424486946,18.67,21.195,21.188,18.83]
[1680424487443,23.6,21.194,21.183,23.41]
[1680424500950,165.2,21.194,21.183,23.41]
[1680424501854,46.9122,21.193,21.183,23.41]
[1680424506459,23.6,21.189,21.178,23.6]
[1680424509661,23.6,21.187,21.175,23.6]
[1680424513868,23.6,21.184,21.174,47.1766]
[1680424515569,165.2,21.184,21.173,23.6]
[1680424515770,23.6,21.181,21.17,23.6]
[1680424517069,23.6,21.178,21.166,23.6]
[1680424524175,0.06956913,21.183,21.172,23.6]
[1680424524473,23.6,21.184,21.172,23.6]
[1680424540984,23.6,21.184,21.164,33.55]
[1680424540985,23.6,21.18,21.169,23.41]
[1680424547391,23.6,21.18,21.17,126.93537444]
[1680424548995,23.6,21.172,21.163,45.535]
[1680424549189,23.6,21.172,21.152,100.0]
[1680424549393,0.0706851,21.169,21.16,23.6]
[1680424549694,23.6607776,21.172,21.16,23.6]
[1680424553296,23.6,21.168,21.157,23.6]
[1680424553496,23.6,21.168,21.158,127.00116054]
[1680424556297,23.6,21.168,21.157,23.6]
[1680424558200,141.6,21.167,21.157,23.6]
[1680424558399,23.6,21.161,21.15,23.41]
[1680424560301,0.15164965,21.15,21.146,23.6]
[1680424563403,0.15164965,21.15,21.147,127.06379103]
[1680424564605,0.06052201,21.155,21.149,23.6]
[1680424564904,0.06906149,21.159,21.149,23.6]
[1680424565502,0.06906149,21.159,21.152,23.6]
[1680424573602,10.0,21.173,21.157,23.6]
[1680424573809,23.6,21.169,21.157,23.6]
[1680424575910,23.6,21.169,21.156,0.06624921]
[1680424575911,0.06744485,21.17,21.161,23.6]
[1680424586318,0.06744485,21.17,21.163,23.6]
[1680424594726,23.6,21.177,21.166,23.6]
[1680424594924,23.6,21.179,21.168,23.6]
[1680424630954,46.34045117,21.181,21.172,23.41]
[1680424637359,46.34045117,21.181,21.166,0.06561931]
[1680424637556,46.34045117,21.181,21.174,18.9]
[1680424643758,18.9,21.178,21.171,18.76]
[1680424646467,18.9,21.175,21.167,18.76]
[1680424647165,18.79,21.173,21.166,0.06561931]
[1680424647364,48.1502,21.172,21.166,0.06561931]
[1680424647664,48.1502,21.172,21.166,126.99027552]
[1680424652467,23.65,21.171,21.166,126.99027552]
[1680424652663,23.65,21.171,21.162,0.07059698]
[1680424652866,23.65,21.171,21.162,127.0608725]
[1680424653171,23.65,21.171,21.163,126.99027552]
[1680424653466,23.65,21.171,21.162,0.07059698]
[1680424653467,23.48,21.167,21.162,0.07059698]
[1680424653667,23.48,21.167,21.157,137.06997752]
[1680424653866,23.48,21.167,21.158,127.0052511]
[1680424654066,23.48,21.167,21.159,127.0052511]
[1680424654264,23.48,21.167,21.16,127.0052511]
[1680424654466,23.48,21.167,21.161,127.0052511]
[1680424654766,23.48,21.167,21.162,127.0052511]
[1680424654968,23.48,21.167,21.163,127.0052511]
[1680424655267,23.48,21.167,21.157,0.06472642]
[1680424655761,23.48,21.167,21.157,127.07055087]
[1680424666674,0.07113468,21.169,21.159,23.59]
[1680424666974,0.07113468,21.169,21.16,127.00582445]
[1680424672571,0.07113468,21.169,21.163,23.42]
[1680424672772,48.1502,21.172,21.163,23.42]
[1680424678379,48.1502,21.172,21.164,126.98241184]
[1680424678580,23.71714348,21.173,21.164,126.98241184]
[1680424678982,23.65,21.171,21.164,126.98241184]
[1680424679281,23.65,21.171,21.158,44.7129]
[1680424679579,23.65,21.171,21.16,23.59]
[1680424679779,23.65,21.171,21.161,127.007583]
[1680424680180,23.48,21.168,21.158,44.7129]
[1680424680380,23.48,21.168,21.159,127.02110871]
[1680424684984,45.2229,21.172,21.159,127.02110871]
[1680424684985,23.65,21.165,21.159,127.02110871]
[1680424685186,23.65,21.163,21.157,0.06472642]
[1680424685381,23.65,21.163,21.153,0.06678533]
[1680424685582,23.65,21.16,21.153,0.06678533]
[1680424685786,23.65,21.16,21.153,127.10744226]
[1680424685987,23.65,21.16,21.154,127.04065693]
[1680424686180,23.65,21.16,21.153,0.06678533]
[1680424687285,0.06085718,21.153,21.15,127.05148953]
[1680424687485,0.06085718,21.153,21.146,23.59]
[1680424687787,0.06085718,21.153,21.147,127.08089594]
[1680424692288,0.06085718,21.153,21.145,127.08089594]
[1680424697087,23.71085718,21.153,21.145,127.08089594]
[1680424697395,23.71085718,21.153,21.143,0.06172199]
[1680424697995,23.71085718,21.153,21.143,127.15510801]
[1680424698295,23.71085718,21.153,21.144,127.09338602]
[1680424698492,23.71085718,21.153,21.143,0.06172199]
[1680424698894,23.71085718,21.153,21.143,127.1551514]
[1680424707206,23.65,21.152,21.143,0.06172199]
[1680424707406,0.06085718,21.153,21.133,23.59]
[1680424707407,23.48,21.144,21.133,23.59]
[1680424707705,23.48,21.144,21.134,127.15762359]
[1680424708402,23.48,21.144,21.133,23.59]
[1680424710409,23.48,21.144,21.134,127.14369146]
[1680424710606,23.48,21.144,21.133,23.59]
[1680424711206,23.48,21.144,21.134,127.14333994]
[1680424712310,23.48,21.144,21.133,23.59]
[1680424714610,23.48,21.144,21.134,127.12934552]
[1680424715409,23.48,21.144,21.133,23.59]
[1680424724311,0.06836061,21.146,21.136,23.61]
[1680424727013,23.71836061,21.146,21.135,23.65]
[1680424730612,23.65,21.143,21.132,23.61]
[1680424731314,23.65,21.14,21.13,100.0]
[1680424731514,23.65,21.14,21.131,127.15489173]
[1680424732715,23.65,21.137,21.125,23.59]
[1680424733314,0.06666974,21.138,21.128,23.61]
[1680424740621,0.06666974,21.138,21.131,23.61]
[1680424741627,0.06666974,21.138,21.135,23.61]
[1680424741826,0.06560842,21.144,21.135,23.61]
[1680424746237,0.06560842,21.144,21.138,23.42]
[1680424746534,0.0660858,21.148,21.138,23.42]
[1680424747833,0.0660858,21.148,21.145,23.61]
[1680424748032,46.1453,21.152,21.145,23.61]
[1680424749435,0.06801445,21.154,21.145,23.61]
[1680424757442,23.54085718,21.153,21.142,69.9304]
[1680424758741,23.54085718,21.153,21.142,23.59]
[1680424758940,23.65,21.15,21.138,23.42]
[1680424766145,23.65,21.15,21.139,127.13834464]
[1680424766348,23.65,21.15,21.14,10.0]
[1680424766644,23.65,21.15,21.138,23.42]
[1680424766847,23.65,21.15,21.139,127.13821528]
[1680424767047,68.9812,21.152,21.14,23.65]
[1680424773353,68.9812,21.152,21.141,127.13926365]
[1680424775851,45.3312,21.152,21.137,23.65]
[1680424776055,23.48,21.148,21.138,127.1527418]
[1680424776251,23.65,21.146,21.138,127.1527418]
[1680424776449,23.65,21.146,21.139,127.1527418]
[1680424776753,23.65,21.146,21.135,23.61]
[1680424776953,23.65,21.146,21.136,127.1669313]
[1680424781456,23.65,21.142,21.136,127.1669313]
[1680424781653,23.65,21.142,21.132,127.1669313]
[1680424798265,23.71101793,21.144,21.133,23.42]
[1680424815083,23.71101793,21.144,21.131,43.6874]
[1680424815084,0.06101793,21.144,21.137,23.65]
[1680424817389,0.06101793,21.144,21.141,23.65]
[1680424817580,44.2164,21.148,21.141,23.65]
[1680424817891,0.06583253,21.15,21.141,23.65]
[1680424818090,0.06583253,21.15,21.144,23.42]
[1680424818286,0.06331051,21.154,21.144,23.42]
[1680424829696,0.06331051,21.154,21.139,10.0]
[1680424829995,0.06331051,21.154,21.147,23.65]
[1680424847004,0.06331051,21.154,21.145,23.61]
[1680424852408,0.06331051,21.154,21.147,18.8]
[1680424860010,0.06331051,21.154,21.151,18.8]
[1680424860208,63.452,21.159,21.151,18.8]
[1680424867117,18.95,21.156,21.149,18.8]
[1680424874522,18.95,21.159,21.152,18.8]
[1680424886927,0.0604201,21.16,21.155,18.95]
[1680424887122,18.95,21.162,21.155,18.95]
[1680424892233,1.73752627,21.161,21.155,18.95]
[1680424897139,18.95,21.16,21.152,18.8]
[1680424898533,18.95,21.16,21.141,10.0]
[1680424898741,18.95,21.154,21.142,127.08749111]
[1680424898939,18.95,21.154,21.143,127.08749111]